[Event "Open Nuevo Centro. Jornada 2"]
[Site "Chess.com"]
[Date "2020.06.26"]
[Round "7"]
[White "Méndez Giménez , Néstor Emmanuel"]
[Black "Yeste Campos, Manuel"]
[Result "1-0"]
[WhiteElo "1122"]
[BlackElo "916"]
[TimeControl "180+2"]
[EndTime "11:41:51 PDT"]
[Termination "Victoria de NestorMendez8 por jaque mate"]

1. e4 {[%clk 0:03:01.9]} 1... c5 {[%clk 0:02:54.6]} 2. Nf3 {[%clk 0:03:03.5]}
2... d6 {[%clk 0:02:53.4]} 3. d4 {[%clk 0:03:04.1]} 3... cxd4 {[%clk 0:02:53.9]}
4. Qxd4 {[%clk 0:03:04.1]} 4... e5 {[%clk 0:02:51.2]} 5. Qd3 {[%clk 0:03:03.8]}
5... Nf6 {[%clk 0:02:50.8]} 6. Nc3 {[%clk 0:03:01.9]} 6... Nc6 {[%clk
0:02:49.5]} 7. g3 {[%clk 0:02:59.3]} 7... Be7 {[%clk 0:02:48.7]} 8. Bg2 {[%clk
0:02:59.6]} 8... O-O {[%clk 0:02:45.3]} 9. O-O {[%clk 0:02:59]} 9... h6 {[%clk
0:02:38.8]} 10. b3 {[%clk 0:02:57.4]} 10... Nb4 {[%clk 0:02:36.1]} 11. Qd2
{[%clk 0:02:55.3]} 11... Be6 {[%clk 0:02:19.7]} 12. Bb2 {[%clk 0:02:50.9]} 12...
d5 {[%clk 0:02:14.4]} 13. exd5 {[%clk 0:02:50.5]} 13... Nfxd5 {[%clk 0:02:14.8]}
14. Rfd1 {[%clk 0:02:47.4]} 14... Nxc3 {[%clk 0:02:05.8]} 15. Qxc3 {[%clk
0:02:46]} 15... Qb6 {[%clk 0:01:49.5]} 16. Nxe5 {[%clk 0:02:40.2]} 16... Rac8
{[%clk 0:01:47.7]} 17. Nc4 {[%clk 0:02:35]} 17... Bxc4 {[%clk 0:01:43.8]} 18.
Qxg7# {[%clk 0:02:35.3]} 1

[Event "Open Nuevo Centro. Jornada 2"]
[Site "Chess.com"]
[Date "2020.06.26"]
[Round "7"]
[White "Chernikov, Vladimir"]
[Black "Gracia Calvo, Andrés"]
[Result "1-0"]
[WhiteElo "2268"]
[BlackElo "1817"]
[TimeControl "180+2"]
[EndTime "11:41:57 PDT"]
[Termination "Victoria de isla88 por abandono"]

1. b3 {[%clk 0:03:01.9]} 1... c6 {[%clk 0:02:59.8]} 2. Bb2 {[%clk 0:03:02.9]}
2... d5 {[%clk 0:03:01.7]} 3. Nf3 {[%clk 0:03:02.8]} 3... Bf5 {[%clk 0:03:02.7]}
4. d3 {[%clk 0:03:03.9]} 4... Nf6 {[%clk 0:03:03.5]} 5. Nbd2 {[%clk 0:03:04.9]}
5... Nbd7 {[%clk 0:03:04.6]} 6. g3 {[%clk 0:03:06.3]} 6... e6 {[%clk 0:03:03.2]}
7. Bg2 {[%clk 0:03:07.6]} 7... h6 {[%clk 0:03:02.4]} 8. O-O {[%clk 0:03:07.6]}
8... Be7 {[%clk 0:03:02]} 9. Qe1 {[%clk 0:03:07.8]} 9... O-O {[%clk 0:03:02.6]}
10. e4 {[%clk 0:03:08.8]} 10... Bh7 {[%clk 0:03:02.2]} 11. Qe2 {[%clk
0:03:03.6]} 11... Re8 {[%clk 0:02:54.6]} 12. a4 {[%clk 0:02:57.6]} 12... a5
{[%clk 0:02:54.2]} 13. Rad1 {[%clk 0:02:56.7]} 13... Qc7 {[%clk 0:02:50.6]} 14.
Nd4 {[%clk 0:02:50.4]} 14... dxe4 {[%clk 0:02:38.1]} 15. Nxe4 {[%clk 0:02:40.2]}
15... Nc5 {[%clk 0:02:13.8]} 16. Nxc5 {[%clk 0:02:25.2]} 16... Bxc5 {[%clk
0:02:11.7]} 17. Nf3 {[%clk 0:02:22.7]} 17... Be7 {[%clk 0:02:03]} 18. Ne5 {[%clk
0:02:22.2]} 18... Red8 {[%clk 0:01:55.9]} 19. Ng4 {[%clk 0:02:18.9]} 1

[Event "Open Nuevo Centro. Jornada 2"]
[Site "Chess.com"]
[Date "2020.06.26"]
[Round "7"]
[White "Albuixech Sanz, Jorge"]
[Black "Donate Peris, Jose Manuel"]
[Result "1-0"]
[WhiteElo "1502"]
[BlackElo "1589"]
[TimeControl "180+2"]
[EndTime "11:43:25 PDT"]
[Termination "Victoria de Gamyi2 por jaque mate"]

1. e4 {[%clk 0:03:01.9]} 1... e5 {[%clk 0:03:00.8]} 2. Nf3 {[%clk 0:03:02]} 2...
Nc6 {[%clk 0:03:01.7]} 3. Nc3 {[%clk 0:03:03.5]} 3... d6 {[%clk 0:03:00.7]} 4.
d4 {[%clk 0:03:04.3]} 4... exd4 {[%clk 0:03:00]} 5. Nxd4 {[%clk 0:03:04.5]} 5...
Nxd4 {[%clk 0:02:58.5]} 6. Qxd4 {[%clk 0:03:04.5]} 6... Qf6 {[%clk 0:02:59.3]}
7. Be3 {[%clk 0:03:01.3]} 7... Qxd4 {[%clk 0:02:58.3]} 8. Bxd4 {[%clk
0:03:01.4]} 8... f6 {[%clk 0:02:59]} 9. Nd5 {[%clk 0:02:52.7]} 9... Kd8 {[%clk
0:02:57.8]} 10. O-O-O {[%clk 0:02:51.1]} 10... Ne7 {[%clk 0:02:51.9]} 11. Nf4
{[%clk 0:02:42]} 11... Nc6 {[%clk 0:02:49.2]} 12. Bc3 {[%clk 0:02:39.5]} 12...
g5 {[%clk 0:02:39.1]} 13. Nd5 {[%clk 0:02:35.6]} 13... Rg8 {[%clk 0:02:28.2]}
14. Bxf6+ {[%clk 0:02:17.3]} 14... Be7 {[%clk 0:02:25]} 15. Bxe7+ {[%clk
0:02:17.7]} 15... Nxe7 {[%clk 0:02:24.7]} 16. Bc4 {[%clk 0:02:08.1]} 16... Bd7
{[%clk 0:02:18.1]} 17. Nxe7 {[%clk 0:02:06.3]} 17... Kxe7 {[%clk 0:02:08.6]} 18.
Bxg8 {[%clk 0:02:06.9]} 18... Rxg8 {[%clk 0:02:09.1]} 19. Rhe1 {[%clk
0:02:03.3]} 19... Rf8 {[%clk 0:02:06.5]} 20. f3 {[%clk 0:02:03.9]} 20... Kf6
{[%clk 0:01:57.4]} 21. e5+ {[%clk 0:02:02.5]} 21... Kg6 {[%clk 0:01:51.5]} 22.
exd6 {[%clk 0:02:02.7]} 22... Bf5 {[%clk 0:01:48.8]} 23. dxc7 {[%clk 0:01:59]}
23... Rc8 {[%clk 0:01:48.7]} 24. Re7 {[%clk 0:01:57.1]} 24... Kf6 {[%clk
0:01:48.2]} 25. Rde1 {[%clk 0:01:48.8]} 25... h6 {[%clk 0:01:43.4]} 26. g4
{[%clk 0:01:48.9]} 26... Bg6 {[%clk 0:01:35.6]} 27. R1e6# {[%clk 0:01:48.7]} 1

[Event "Open Nuevo Centro. Jornada 2"]
[Site "Chess.com"]
[Date "2020.06.26"]
[Round "7"]
[White "Sanchez Saez, Francisco"]
[Black "Gutierrez Marco, Dario"]
[Result "1-0"]
[WhiteElo "2282"]
[BlackElo "1912"]
[TimeControl "180+2"]
[EndTime "11:43:49 PDT"]
[Termination "Victoria de Pacman1995 por abandono"]

1. e4 {[%clk 0:03:01.9]} 1... c5 {[%clk 0:02:58.9]} 2. Nf3 {[%clk 0:02:58.7]}
2... e6 {[%clk 0:02:59.9]} 3. d4 {[%clk 0:02:58.8]} 3... cxd4 {[%clk 0:03:01.8]}
4. c3 {[%clk 0:02:59.9]} 4... Nf6 {[%clk 0:03:01.6]} 5. e5 {[%clk 0:02:58.6]}
5... Nd5 {[%clk 0:03:03]} 6. cxd4 {[%clk 0:02:59.5]} 6... d6 {[%clk 0:03:02.8]}
7. exd6 {[%clk 0:02:59.2]} 7... Bxd6 {[%clk 0:03:03.5]} 8. Nc3 {[%clk
0:03:00.9]} 8... Nxc3 {[%clk 0:03:04]} 9. bxc3 {[%clk 0:03:02.8]} 9... Qc7
{[%clk 0:03:05.3]} 10. Bd2 {[%clk 0:03:02.3]} 10... b6 {[%clk 0:03:05.2]} 11.
Bd3 {[%clk 0:03:02.3]} 11... Bb7 {[%clk 0:03:06.2]} 12. O-O {[%clk 0:03:03]}
12... Nd7 {[%clk 0:03:05.4]} 13. Rc1 {[%clk 0:03:03.3]} 13... O-O {[%clk
0:03:04.7]} 14. c4 {[%clk 0:02:56.3]} 14... f5 {[%clk 0:02:45.2]} 15. Re1 {[%clk
0:02:51]} 15... Rae8 {[%clk 0:02:43.5]} 16. Bc3 {[%clk 0:02:19.8]} 16... e5
{[%clk 0:02:01.9]} 17. d5 {[%clk 0:01:56.1]} 17... e4 {[%clk 0:01:59.2]} 18. Ng5
{[%clk 0:01:57]} 18... exd3 {[%clk 0:01:34.8]} 19. Rxe8 {[%clk 0:01:58.9]} 19...
Rxe8 {[%clk 0:01:33.9]} 20. Qh5 {[%clk 0:02:00.1]} 20... Qc8 {[%clk 0:00:34.6]}
21. Qf7+ {[%clk 0:01:55.7]} 1

[Event "Open Nuevo Centro. Jornada 2"]
[Site "Chess.com"]
[Date "2020.06.26"]
[Round "7"]
[White "Mora Bort, Miguel Ángel"]
[Black "Elenkov Olmo, Ivan"]
[Result "1-0"]
[WhiteElo "1159"]
[BlackElo "900"]
[TimeControl "180+2"]
[EndTime "11:43:50 PDT"]
[Termination "Victoria de miguelon41 por abandono"]

1. e4 {[%clk 0:03:01.9]} 1... e5 {[%clk 0:02:57.3]} 2. f4 {[%clk 0:03:01]} 2...
exf4 {[%clk 0:02:56.2]} 3. Nf3 {[%clk 0:03:00.1]} 3... d5 {[%clk 0:02:53.2]} 4.
exd5 {[%clk 0:02:51.4]} 4... Qxd5 {[%clk 0:02:50.7]} 5. Nc3 {[%clk 0:02:52.5]}
5... Qe6+ {[%clk 0:02:45]} 6. Be2 {[%clk 0:02:51.6]} 6... Bb4 {[%clk 0:02:37.4]}
7. d4 {[%clk 0:02:48.9]} 7... Bxc3+ {[%clk 0:02:34]} 8. bxc3 {[%clk 0:02:46.5]}
8... Nf6 {[%clk 0:02:28.1]} 9. Bxf4 {[%clk 0:02:45.9]} 9... Ne4 {[%clk
0:02:21.8]} 10. Qd3 {[%clk 0:02:45.8]} 10... f5 {[%clk 0:02:01.5]} 11. O-O
{[%clk 0:02:44.9]} 11... O-O {[%clk 0:01:59.1]} 12. Nd2 {[%clk 0:02:45.4]} 12...
Nxd2 {[%clk 0:01:57.6]} 13. Qxd2 {[%clk 0:02:43.1]} 13... Nd7 {[%clk 0:01:44]}
14. Bd3 {[%clk 0:02:34.8]} 14... c5 {[%clk 0:01:33.5]} 15. Rfe1 {[%clk
0:02:35.3]} 15... Qf7 {[%clk 0:01:26.4]} 16. Qe2 {[%clk 0:02:32.3]} 16... Nf6
{[%clk 0:01:15.1]} 17. Be5 {[%clk 0:02:10.3]} 17... Re8 {[%clk 0:00:48.6]} 18.
Bc4 {[%clk 0:02:00.8]} 18... Qxc4 {[%clk 0:00:43.8]} 19. Qxc4+ {[%clk
0:02:00.1]} 19... Be6 {[%clk 0:00:37.7]} 20. Qxc5 {[%clk 0:02:00.4]} 1

[Event "Open Nuevo Centro. Jornada 2"]
[Site "Chess.com"]
[Date "2020.06.26"]
[Round "7"]
[White "SIMARRO PEIRÓ, ANDRÉS"]
[Black "Casado Andreu, David"]
[Result "0-1"]
[WhiteElo "1032"]
[BlackElo "1627"]
[TimeControl "180+2"]
[EndTime "11:44:14 PDT"]
[Termination "Victoria de dave6635 por jaque mate"]

1. e4 {[%clk 0:03:01.9]} 1... e5 {[%clk 0:02:34.8]} 2. Nf3 {[%clk 0:03:02.2]}
2... Nc6 {[%clk 0:02:36.2]} 3. Nc3 {[%clk 0:03:01.5]} 3... Nf6 {[%clk
0:02:37.3]} 4. Bb5 {[%clk 0:02:59.9]} 4... Bb4 {[%clk 0:02:37.1]} 5. Bxc6 {[%clk
0:02:59.5]} 5... dxc6 {[%clk 0:02:32.3]} 6. d3 {[%clk 0:02:59.7]} 6... Bxc3+
{[%clk 0:02:29.7]} 7. bxc3 {[%clk 0:02:59.5]} 7... Qe7 {[%clk 0:02:31.1]} 8. Bg5
{[%clk 0:02:55.2]} 8... h6 {[%clk 0:02:31.9]} 9. Bxf6 {[%clk 0:02:55]} 9... Qxf6
{[%clk 0:02:32.3]} 10. O-O {[%clk 0:02:49.1]} 10... Bg4 {[%clk 0:02:33.6]} 11.
h3 {[%clk 0:02:45.4]} 11... Bxf3 {[%clk 0:02:32]} 12. Qxf3 {[%clk 0:02:43.6]}
12... Qxf3 {[%clk 0:02:32.8]} 13. gxf3 {[%clk 0:02:40.1]} 13... O-O {[%clk
0:02:33.4]} 14. Kh2 {[%clk 0:02:39.5]} 14... f5 {[%clk 0:02:34.6]} 15. exf5
{[%clk 0:02:38.8]} 15... Rxf5 {[%clk 0:02:36.5]} 16. Rg1 {[%clk 0:02:38.7]}
16... Rxf3 {[%clk 0:02:36.1]} 17. Rg2 {[%clk 0:02:38.3]} 17... Raf8 {[%clk
0:02:36.3]} 18. Rf1 {[%clk 0:02:29.4]} 18... R3f4 {[%clk 0:02:29.8]} 19. Rfg1
{[%clk 0:02:27.1]} 19... R8f7 {[%clk 0:02:29.3]} 20. Re1 {[%clk 0:02:10.8]}
20... Rxf2 {[%clk 0:02:24.6]} 21. Rxf2 {[%clk 0:02:07.9]} 21... Rxf2+ {[%clk
0:02:25.7]} 22. Kg3 {[%clk 0:02:08.8]} 22... Rxc2 {[%clk 0:02:26.5]} 23. Rxe5
{[%clk 0:02:09.4]} 23... Rxa2 {[%clk 0:02:27.5]} 24. Re8+ {[%clk 0:02:09.8]}
24... Kh7 {[%clk 0:02:20.7]} 25. Rb8 {[%clk 0:02:09.6]} 25... b5 {[%clk
0:02:20.4]} 26. Rb7 {[%clk 0:02:10.8]} 26... Ra3 {[%clk 0:02:19.7]} 27. Rxc7
{[%clk 0:02:09.9]} 27... Rxc3 {[%clk 0:02:20.5]} 28. Rxa7 {[%clk 0:02:10.6]}
28... Rxd3+ {[%clk 0:02:21.4]} 29. Kh4 {[%clk 0:02:10.8]} 29... c5 {[%clk
0:02:21.1]} 30. Rc7 {[%clk 0:02:09.8]} 30... c4 {[%clk 0:02:21.5]} 31. Rb7
{[%clk 0:02:09.5]} 31... Rd5 {[%clk 0:02:21.5]} 32. Kg4 {[%clk 0:02:08.3]} 32...
Rc5 {[%clk 0:02:22.8]} 33. Kf4 {[%clk 0:02:07.7]} 33... c3 {[%clk 0:02:24.2]}
34. Ke3 {[%clk 0:02:04.8]} 34... c2 {[%clk 0:02:25.3]} 35. h4 {[%clk 0:01:51.1]}
35... c1=Q+ {[%clk 0:02:25.9]} 36. Kf3 {[%clk 0:01:48.6]} 36... Rf5+ {[%clk
0:02:24.7]} 37. Kg4 {[%clk 0:01:48.3]} 37... Qf4+ {[%clk 0:02:25.1]} 38. Kh3
{[%clk 0:01:48.8]} 38... Qf3+ {[%clk 0:02:19.2]} 39. Kh2 {[%clk 0:01:48.7]}
39... Re5 {[%clk 0:02:11]} 40. Kg1 {[%clk 0:01:32.7]} 40... Re1+ {[%clk
0:02:10.7]} 41. Kh2 {[%clk 0:01:27.8]} 41... Re2+ {[%clk 0:02:10.9]} 42. Kg1
{[%clk 0:01:27.1]} 42... Qg2# {[%clk 0:02:12.2]} 0

[Event "Open Nuevo Centro. Jornada 2"]
[Site "Chess.com"]
[Date "2020.06.26"]
[Round "7"]
[White "Gerona Maura, Jesus"]
[Black "Tormos Beltran, Maite"]
[Result "1-0"]
[WhiteElo "1751"]
[BlackElo "1462"]
[TimeControl "180+2"]
[EndTime "11:44:20 PDT"]
[Termination "Victoria de Retistente por abandono"]

1. e4 {[%clk 0:03:01.9]} 1... d5 {[%clk 0:03:00]} 2. Nf3 {[%clk 0:03:00.9]} 2...
dxe4 {[%clk 0:03:00.1]} 3. Ng5 {[%clk 0:03:01.9]} 3... Nf6 {[%clk 0:03:00.6]} 4.
d3 {[%clk 0:03:02.7]} 4... exd3 {[%clk 0:03:00.2]} 5. Bxd3 {[%clk 0:03:03.6]}
5... h6 {[%clk 0:02:59.9]} 6. Nxf7 {[%clk 0:03:03.2]} 6... Kxf7 {[%clk
0:02:53.8]} 7. Bg6+ {[%clk 0:03:04]} 7... Kxg6 {[%clk 0:02:49.9]} 8. Qxd8 {[%clk
0:03:04.6]} 8... Nbd7 {[%clk 0:02:49]} 9. Qxc7 {[%clk 0:03:01.4]} 9... e5 {[%clk
0:02:48.2]} 10. Nc3 {[%clk 0:02:54.2]} 10... Bc5 {[%clk 0:02:41.3]} 11. O-O
{[%clk 0:02:46.5]} 11... Ne8 {[%clk 0:02:37.1]} 12. Qa5 {[%clk 0:02:33.1]} 12...
b6 {[%clk 0:02:32.1]} 13. Qa4 {[%clk 0:02:29.4]} 13... Nd6 {[%clk 0:02:25]} 14.
Qg4+ {[%clk 0:02:19.7]} 14... Kh7 {[%clk 0:02:20.7]} 15. Ne4 {[%clk 0:02:04.7]}
15... Nf6 {[%clk 0:02:11.8]} 16. Nxf6+ {[%clk 0:02:02.6]} 16... gxf6 {[%clk
0:02:12.2]} 17. Qh4 {[%clk 0:01:42.7]} 17... Nf5 {[%clk 0:02:05]} 18. Qxf6
{[%clk 0:01:41.4]} 18... Rg8 {[%clk 0:02:02]} 19. Be3 {[%clk 0:01:30.6]} 19...
Bb7 {[%clk 0:01:56.5]} 20. Qxf5+ {[%clk 0:01:19.3]} 20... Kh8 {[%clk 0:01:56.9]}
21. Qf6+ {[%clk 0:01:09.2]} 21... Rg7 {[%clk 0:01:52.9]} 22. Bxh6 {[%clk
0:01:05.5]} 22... Bf8 {[%clk 0:01:45.7]} 23. Bxg7+ {[%clk 0:01:04.2]} 23... Bxg7
{[%clk 0:01:46.7]} 24. Qh4+ {[%clk 0:01:02.9]} 24... Kg8 {[%clk 0:01:45.3]} 25.
Rad1 {[%clk 0:01:03.5]} 25... Rf8 {[%clk 0:01:45.3]} 26. Rd8 {[%clk 0:01:03.6]}
26... Kf7 {[%clk 0:01:44.9]} 27. Rxf8+ {[%clk 0:01:03.3]} 27... Bxf8 {[%clk
0:01:45.7]} 28. Rd1 {[%clk 0:01:03.2]} 28... Be7 {[%clk 0:01:46.2]} 29. Rd7
{[%clk 0:01:02.8]} 1

[Event "Open Nuevo Centro. Jornada 2"]
[Site "Chess.com"]
[Date "2020.06.26"]
[Round "7"]
[White "Gil López, Alejandro"]
[Black "Pardo Ruiz, Carlos"]
[Result "1-0"]
[WhiteElo "2111"]
[BlackElo "1847"]
[TimeControl "180+2"]
[EndTime "11:44:26 PDT"]
[Termination "Victoria de AglVal0313 por jaque mate"]

1. e4 {[%clk 0:03:01.9]} 1... Nf6 {[%clk 0:03:00.4]} 2. e5 {[%clk 0:03:01.7]}
2... Nd5 {[%clk 0:03:01.3]} 3. c4 {[%clk 0:03:03.1]} 3... Nb6 {[%clk 0:03:01.6]}
4. d4 {[%clk 0:03:05]} 4... d6 {[%clk 0:03:02.7]} 5. exd6 {[%clk 0:03:01.8]}
5... exd6 {[%clk 0:03:04.6]} 6. Nf3 {[%clk 0:03:02.3]} 6... Bg4 {[%clk
0:03:04.7]} 7. Be2 {[%clk 0:03:03]} 7... Nc6 {[%clk 0:03:05.3]} 8. O-O {[%clk
0:03:02.8]} 8... Be7 {[%clk 0:03:05.9]} 9. Nc3 {[%clk 0:02:58.7]} 9... O-O
{[%clk 0:03:06.3]} 10. Bf4 {[%clk 0:02:57.4]} 10... Bf6 {[%clk 0:03:05.1]} 11.
Be3 {[%clk 0:02:54.9]} 11... Re8 {[%clk 0:03:03.6]} 12. c5 {[%clk 0:02:51.7]}
12... dxc5 {[%clk 0:03:02.4]} 13. dxc5 {[%clk 0:02:53.6]} 13... Qxd1 {[%clk
0:02:59]} 14. Rfxd1 {[%clk 0:02:50]} 14... Nc8 {[%clk 0:02:58.6]} 15. h3 {[%clk
0:02:47.8]} 15... Bf5 {[%clk 0:02:58.5]} 16. Nd5 {[%clk 0:02:45]} 16... Bxb2
{[%clk 0:02:48.4]} 17. Nxc7 {[%clk 0:02:45.6]} 17... Bxa1 {[%clk 0:02:48.5]} 18.
Nxe8 {[%clk 0:02:42.2]} 18... Bc3 {[%clk 0:02:40.7]} 19. Nc7 {[%clk 0:02:32.1]}
19... Rb8 {[%clk 0:02:37.3]} 20. Bf4 {[%clk 0:02:33.5]} 20... N8e7 {[%clk
0:02:28.6]} 21. Nb5 {[%clk 0:02:30.5]} 21... Rd8 {[%clk 0:02:09.2]} 22. Rxd8+
{[%clk 0:02:29.6]} 22... Nxd8 {[%clk 0:02:10.6]} 23. Nxc3 {[%clk 0:02:31]} 23...
Ndc6 {[%clk 0:02:08.9]} 24. Bd6 {[%clk 0:02:29.2]} 24... Ng6 {[%clk 0:02:04.1]}
25. Bc4 {[%clk 0:02:27.6]} 25... Na5 {[%clk 0:01:48.6]} 26. Bd5 {[%clk
0:02:26.9]} 26... b6 {[%clk 0:01:48.3]} 27. Ng5 {[%clk 0:02:23.9]} 27... Nh8
{[%clk 0:01:30.6]} 28. Nb5 {[%clk 0:02:15.3]} 28... a6 {[%clk 0:01:24.4]} 29.
cxb6 {[%clk 0:02:06.6]} 29... axb5 {[%clk 0:01:24.5]} 30. Bb4 {[%clk 0:02:04.9]}
30... h6 {[%clk 0:01:19.3]} 31. Bxa5 {[%clk 0:02:04.7]} 31... hxg5 {[%clk
0:01:17.9]} 32. b7 {[%clk 0:02:05.7]} 32... Kh7 {[%clk 0:01:16.3]} 33. b8=Q
{[%clk 0:02:05.9]} 33... b4 {[%clk 0:01:16.6]} 34. Qxb4 {[%clk 0:02:06.5]} 34...
f6 {[%clk 0:01:16.1]} 35. Be4 {[%clk 0:02:06.2]} 35... Bxe4 {[%clk 0:01:14.8]}
36. Qxe4+ {[%clk 0:02:08.1]} 36... Ng6 {[%clk 0:01:14.6]} 37. Bc3 {[%clk
0:02:06.4]} 37... g4 {[%clk 0:01:14]} 38. hxg4 {[%clk 0:02:06.4]} 38... f5
{[%clk 0:01:15]} 39. Qxf5 {[%clk 0:02:06.5]} 39... Kh6 {[%clk 0:01:13.4]} 40.
Qh5# {[%clk 0:02:03]} 1

[Event "Open Nuevo Centro. Jornada 2"]
[Site "Chess.com"]
[Date "2020.06.26"]
[Round "7"]
[White "Yatseta Fernandez, Marc Kazymyr"]
[Black "Gómez Alonso, Óscar"]
[Result "1-0"]
[WhiteElo "1490"]
[BlackElo "1838"]
[TimeControl "180+2"]
[EndTime "11:44:26 PDT"]
[Termination "Victoria de K_73 por abandono"]

1. d4 {[%clk 0:03:01.9]} 1... Nf6 {[%clk 0:03:00.4]} 2. c4 {[%clk 0:03:03.2]}
2... e6 {[%clk 0:02:59.9]} 3. g3 {[%clk 0:03:03.1]} 3... d5 {[%clk 0:03:00.7]}
4. Bg2 {[%clk 0:03:04.2]} 4... c6 {[%clk 0:03:01.2]} 5. Nf3 {[%clk 0:03:05.1]}
5... Be7 {[%clk 0:03:00.7]} 6. O-O {[%clk 0:03:06]} 6... O-O {[%clk 0:03:01.7]}
7. Bf4 {[%clk 0:03:03.4]} 7... Nbd7 {[%clk 0:03:01.1]} 8. Nbd2 {[%clk
0:03:02.6]} 8... a6 {[%clk 0:02:59]} 9. a3 {[%clk 0:03:01]} 9... dxc4 {[%clk
0:02:46.3]} 10. Nxc4 {[%clk 0:03:00.5]} 10... Nb6 {[%clk 0:02:45.8]} 11. Nfe5
{[%clk 0:02:56.4]} 11... Nxc4 {[%clk 0:02:45.9]} 12. Nxc4 {[%clk 0:02:58.3]}
12... Nd5 {[%clk 0:02:46.1]} 13. Rc1 {[%clk 0:02:54]} 13... Nxf4 {[%clk
0:02:46]} 14. gxf4 {[%clk 0:02:54.1]} 14... Bf6 {[%clk 0:02:43.9]} 15. Ne5
{[%clk 0:02:48.3]} 15... Qd6 {[%clk 0:02:35.2]} 16. e4 {[%clk 0:02:39.3]} 16...
Bd7 {[%clk 0:02:31.4]} 17. Qd2 {[%clk 0:02:33.6]} 17... Rfd8 {[%clk 0:02:29.2]}
18. Rfd1 {[%clk 0:02:32.9]} 18... Be8 {[%clk 0:02:30]} 19. b4 {[%clk 0:02:20.4]}
19... b5 {[%clk 0:02:18.5]} 20. d5 {[%clk 0:02:20.9]} 20... exd5 {[%clk
0:02:18.8]} 21. exd5 {[%clk 0:02:21.4]} 21... Bxe5 {[%clk 0:02:10.1]} 22. fxe5
{[%clk 0:02:13.3]} 22... Qxe5 {[%clk 0:02:10.8]} 23. d6 {[%clk 0:02:07.6]} 23...
Bd7 {[%clk 0:02:09.3]} 24. Bxc6 {[%clk 0:02:02.3]} 24... Bh3 {[%clk 0:01:36.6]}
25. Bxa8 {[%clk 0:01:57.1]} 25... Rxa8 {[%clk 0:01:34.3]} 26. Qd5 {[%clk
0:01:43]} 26... Qxd5 {[%clk 0:01:05.8]} 27. Rxd5 {[%clk 0:01:42.6]} 27... Rd8
{[%clk 0:01:04.6]} 28. d7 {[%clk 0:01:42.4]} 28... g6 {[%clk 0:01:04.6]} 29. Rc8
{[%clk 0:01:41.1]} 1

[Event "Open Nuevo Centro. Jornada 2"]
[Site "Chess.com"]
[Date "2020.06.26"]
[Round "7"]
[White "Hassomal Daswani, Birjkumar"]
[Black "Rodriguez, Mathias"]
[Result "0-1"]
[WhiteElo "1832"]
[BlackElo "1964"]
[TimeControl "180+2"]
[EndTime "11:44:37 PDT"]
[Termination "Victoria de niguil por abandono"]

1. e4 {[%clk 0:03:01.9]} 1... c5 {[%clk 0:03:00.4]} 2. Nf3 {[%clk 0:03:02.5]}
2... Nc6 {[%clk 0:03:01.8]} 3. d4 {[%clk 0:03:02.5]} 3... cxd4 {[%clk
0:03:03.7]} 4. Nxd4 {[%clk 0:03:01.7]} 4... Nf6 {[%clk 0:03:05.6]} 5. Nc3 {[%clk
0:02:59.9]} 5... e5 {[%clk 0:03:06.1]} 6. Nxc6 {[%clk 0:03:00.3]} 6... bxc6
{[%clk 0:03:04.4]} 7. Be2 {[%clk 0:03:01]} 7... Bb4 {[%clk 0:02:58.4]} 8. O-O
{[%clk 0:03:01]} 8... Bxc3 {[%clk 0:02:56.6]} 9. bxc3 {[%clk 0:03:00.5]} 9...
Nxe4 {[%clk 0:02:58.5]} 10. c4 {[%clk 0:02:55.6]} 10... O-O {[%clk 0:02:56.6]}
11. Bd3 {[%clk 0:02:56.1]} 11... d5 {[%clk 0:02:56.2]} 12. Bxe4 {[%clk
0:02:55.1]} 12... dxe4 {[%clk 0:02:54.8]} 13. Qe2 {[%clk 0:02:54.1]} 13... Bf5
{[%clk 0:02:53.1]} 14. Ba3 {[%clk 0:02:49.5]} 14... Re8 {[%clk 0:02:52.1]} 15.
Bc5 {[%clk 0:02:41.7]} 15... Qa5 {[%clk 0:02:51]} 16. Qe3 {[%clk 0:02:40.3]}
16... Be6 {[%clk 0:02:38.7]} 17. a3 {[%clk 0:02:30.3]} 17... Bxc4 {[%clk
0:02:39.6]} 18. Bb4 {[%clk 0:02:30]} 18... Qc7 {[%clk 0:02:34.5]} 19. Qxe4
{[%clk 0:02:28.4]} 19... Bxf1 {[%clk 0:02:34.8]} 20. Rxf1 {[%clk 0:02:27.9]}
20... f6 {[%clk 0:02:35.9]} 21. h4 {[%clk 0:02:24.2]} 21... Red8 {[%clk
0:02:19.6]} 22. Bc3 {[%clk 0:02:18.6]} 22... Rd5 {[%clk 0:02:07.1]} 23. h5
{[%clk 0:02:16.7]} 23... Rad8 {[%clk 0:02:03.6]} 24. h6 {[%clk 0:02:13.8]} 24...
Rd1 {[%clk 0:02:04.3]} 25. hxg7 {[%clk 0:02:03.1]} 25... Rxf1+ {[%clk
0:02:04.4]} 26. Kxf1 {[%clk 0:02:02.8]} 26... Kxg7 {[%clk 0:01:52.6]} 27. g3
{[%clk 0:01:56]} 27... Qd7 {[%clk 0:01:39.6]} 28. Qh4 {[%clk 0:01:46.1]} 28...
Qd1+ {[%clk 0:01:37.6]} 29. Kg2 {[%clk 0:01:46.1]} 29... Qd5+ {[%clk 0:01:37]}
30. Kh2 {[%clk 0:01:44.4]} 30... Qf3 {[%clk 0:01:32.1]} 31. g4 {[%clk
0:01:41.8]} 31... Rd1 {[%clk 0:01:30.7]} 0

[Event "Open Nuevo Centro. Jornada 2"]
[Site "Chess.com"]
[Date "2020.06.26"]
[Round "7"]
[White "Martínez Albelda, Mariela"]
[Black "Colomer Martinez, Isabel"]
[Result "0-1"]
[WhiteElo "992"]
[BlackElo "1260"]
[TimeControl "180+2"]
[EndTime "11:44:42 PDT"]
[Termination "Victoria de jupiter555 por jaque mate"]

1. d4 {[%clk 0:03:01.9]} 1... d5 {[%clk 0:03:00.5]} 2. Nc3 {[%clk 0:03:01.7]}
2... Nf6 {[%clk 0:02:59.9]} 3. Bf4 {[%clk 0:03:01.9]} 3... e6 {[%clk 0:02:55.2]}
4. Nf3 {[%clk 0:02:59.8]} 4... Bd7 {[%clk 0:02:51.6]} 5. e3 {[%clk 0:03:00.4]}
5... Bb4 {[%clk 0:02:30.9]} 6. Qd2 {[%clk 0:02:55.6]} 6... Ne4 {[%clk
0:02:29.6]} 7. Qd3 {[%clk 0:02:51.3]} 7... O-O {[%clk 0:02:09.3]} 8. a3 {[%clk
0:02:47.5]} 8... Bxc3+ {[%clk 0:02:09.3]} 9. bxc3 {[%clk 0:02:47.8]} 9... Re8
{[%clk 0:02:04.2]} 10. Be2 {[%clk 0:02:40.4]} 10... h6 {[%clk 0:01:57.4]} 11.
O-O {[%clk 0:02:37.5]} 11... Qf6 {[%clk 0:01:50.4]} 12. c4 {[%clk 0:02:34.5]}
12... Qg6 {[%clk 0:01:43.6]} 13. Bxc7 {[%clk 0:02:26.3]} 13... e5 {[%clk
0:01:10.4]} 14. dxe5 {[%clk 0:02:23.6]} 14... Bh3 {[%clk 0:01:09.8]} 15. Nh4
{[%clk 0:02:07.8]} 15... Qg5 {[%clk 0:01:03.8]} 16. Qxd5 {[%clk 0:01:54]} 16...
Nc3 {[%clk 0:00:57.5]} 17. Qxb7 {[%clk 0:01:44.3]} 17... Nxe2+ {[%clk
0:00:56.4]} 18. Kh1 {[%clk 0:01:33.4]} 18... Nd7 {[%clk 0:00:45.2]} 19. gxh3
{[%clk 0:01:29]} 19... Qxh4 {[%clk 0:00:45.5]} 20. Rae1 {[%clk 0:01:15.6]} 20...
Qxh3 {[%clk 0:00:34.6]} 21. Rxe2 {[%clk 0:01:12.3]} 21... Qxf1# {[%clk
0:00:34.4]} 0